fUSD/lending_fUSD_20240222
["ID","MTS","AMOUNT","RATE_DAILY","PERIOD"]
[314839767,1708582279230,-281.36334341,0.00036164,2]
[314839768,1708582279240,-500.0,0.00036164,2]
[314839769,1708582279250,-500.0,0.00036164,2]
[314839770,1708582279261,-1471.0,0.00036164,2]
[314839771,1708582279271,-500.0,0.00036164,2]
[314839772,1708582279282,-500.0,0.00036164,2]
[314839773,1708582279292,-500.0,0.00036164,2]
[314839774,1708582279302,-500.0,0.00036164,2]
[314839775,1708582279312,-500.0,0.00036164,2]
[314839776,1708582279322,-500.0,0.00036164,2]
[314839777,1708582279332,-500.0,0.00036164,2]
[314839778,1708582279342,-500.0,0.00036164,2]
[314839779,1708582279352,-500.0,0.00036164,2]
[314839780,1708582279362,-715.66,0.00036164,2]
[314839781,1708582279372,-320.81182658,0.00036164,2]
[314839782,1708582279383,-500.0,0.00036164,2]
[314839783,1708582279392,-500.0,0.00036164,2]
[314839784,1708582279402,-682.52,0.00036164,2]
[314839785,1708582279412,-500.0,0.00036164,2]
[314839786,1708582279422,-634.81,0.00036164,2]
[314839787,1708582279433,-500.0,0.00036164,2]
[314839788,1708582279443,-500.0,0.00036164,2]
[314839789,1708582279453,-500.0,0.00036164,2]
[314839790,1708582279463,-1000.0,0.00036164,7]
[314839791,1708582279472,-1086.15,0.00036164,2]
[314839792,1708582279482,-500.0,0.00036164,2]
[314839793,1708582279492,-623.9,0.00036164,2]
[314839794,1708582279502,-500.0,0.00036164,2]
[314839795,1708582279512,-500.0,0.00036164,2]
[314839796,1708582279522,-500.0,0.00036164,2]
[314839797,1708582279532,-500.0,0.00036164,2]
[314839798,1708582279542,-694.35,0.00036164,2]
[314839799,1708582279551,-500.0,0.00036164,2]
[314839800,1708582279562,-500.0,0.00036164,2]
[314839801,1708582279572,-602.81,0.00036164,2]
[314839802,1708582279582,-1000.0,0.00036164,7]
[314839803,1708582279592,-500.0,0.00036164,2]
[314839804,1708582279602,-500.0,0.00036164,2]
[314839805,1708582279612,-1263.62,0.00036164,2]
[314839806,1708582279623,-1413.13,0.00036164,2]
[314839807,1708582279634,-500.0,0.00036164,2]
[314839808,1708582279644,-500.0,0.00036164,2]
[314839809,1708582279654,-500.0,0.00036164,2]
[314839810,1708582279664,-519.15140673,0.00036164,2]
[314839811,1708582279674,-810.46,0.00036164,2]
[314839812,1708582279684,-500.0,0.00036164,2]
[314839813,1708582279693,-500.0,0.00036164,2]
[314839814,1708582279703,-564.72,0.00036164,2]
[314839815,1708582279713,-500.0,0.00036164,2]
[314839816,1708582279723,-500.0,0.00036164,2]
[314839817,1708582279733,-500.0,0.00036164,2]
[314839818,1708582279743,-500.0,0.00036164,2]
[314839819,1708582279753,-2190.79,0.00036164,2]
[314839820,1708582279763,-500.0,0.00036164,2]
[314839821,1708582279773,-1180.83,0.00036164,2]
[314839822,1708582279783,-500.0,0.00036164,2]
[314839823,1708582279792,-500.0,0.00036164,2]
[314839824,1708582279802,-500.0,0.00036164,2]
[314839825,1708582279813,-103.78935377,0.00036164,2]
[314839826,1708582279867,-396.21064623,0.00036164,2]
[314839827,1708582279878,-500.0,0.00036164,2]
[314839828,1708582279887,-500.0,0.00036164,2]
[314839829,1708582279897,-500.0,0.00036164,2]
[314839830,1708582279907,-500.0,0.00036164,2]
[314839831,1708582279919,-500.0,0.00036164,2]
[314839832,1708582279929,-500.0,0.00036164,2]
[314839833,1708582279939,-500.0,0.00036164,2]
[314839834,1708582279950,-498.14396783,0.00036164,2]
[314839835,1708582279960,-500.0,0.00036164,2]
[314839836,1708582279970,-500.0,0.00036164,2]
[314839837,1708582279980,-500.0,0.00036164,2]
[314839838,1708582279991,-500.0,0.00036164,2]
[314839839,1708582280002,-590.44,0.00036164,2]
[314839840,1708582280013,-500.0,0.00036164,2]
[314839841,1708582280024,-500.0,0.00036164,2]
[314839842,1708582280034,-500.0,0.00036164,2]
[314839843,1708582280045,-500.0,0.00036164,2]
[314839844,1708582280055,-900.97,0.00036164,2]
[314839845,1708582280066,-500.0,0.00036164,2]
[314839846,1708582280076,-558.07,0.00036164,2]
[314839847,1708582280086,-565.76583938,0.00036164,2]
[314839848,1708582280096,-500.0,0.00036164,2]
[314839849,1708582280107,-500.0,0.00036164,2]
[314839850,1708582280118,-500.0,0.00036164,2]
[314839851,1708582280129,-1110.96,0.00036164,2]
[314839852,1708582280139,-500.0,0.00036164,2]
[314839853,1708582280150,-554.82,0.00036164,2]
[314839854,1708582280437,-500.0,0.00036164,2]
[314839855,1708582280447,-500.0,0.00036164,2]
[314839856,1708582280457,-846.49,0.00036164,2]
[314839857,1708582280467,-500.0,0.00036164,2]
[314839858,1708582280477,-500.0,0.00036164,2]
[314839859,1708582280487,-500.0,0.00036164,2]
[314839860,1708582280497,-500.0,0.00036164,2]
[314839861,1708582280507,-500.0,0.00036164,2]
[314839862,1708582280517,-500.0,0.00036164,2]
[314839863,1708582280529,-500.0,0.00036164,2]
[314839864,1708582280541,-500.0,0.00036164,2]
[314839865,1708582280551,-500.0,0.00036164,2]
[314839866,1708582280561,-500.0,0.00036164,2]
[314839867,1708582280573,-500.0,0.00036164,2]
[314839868,1708582280583,-570.04215852,0.00036164,2]
[314839869,1708582280593,-500.0,0.00036164,2]
[314839870,1708582280603,-670.25,0.00036164,2]
[314839871,1708582280613,-500.0,0.00036164,2]
[314839872,1708582280623,-1000.0,0.00036164,7]
[314839873,1708582280634,-500.0,0.00036164,2]
[314839874,1708582280644,-570.22,0.00036164,2]
[314839875,1708582280654,-867.96,0.00036164,2]
[314839876,1708582280664,-500.0,0.00036164,2]
[314839877,1708582280674,-503.94720532,0.00036164,2]
[314839878,1708582280684,-685.13,0.00036164,2]
[314839879,1708582280695,-500.0,0.00036164,2]
[314839880,1708582280705,-500.0,0.00036164,2]
[314839881,1708582280715,-515.76257013,0.00036164,2]
[314839882,1708582280725,-910.54,0.00036164,2]
[314839883,1708582280735,-515.93,0.00036164,2]
[314839884,1708582280745,-500.0,0.00036164,2]
[314839885,1708582280755,-868.98,0.00036164,2]
[314839886,1708582280765,-500.0,0.00036164,2]
[314839887,1708582280775,-500.0,0.00036164,2]
[314839888,1708582280785,-500.0,0.00036164,2]
[314839889,1708582280795,-500.0,0.00036164,2]
[314839890,1708582280805,-500.0,0.00036164,2]
[314839891,1708582280815,-500.0,0.00036164,2]
[314839892,1708582280825,-500.0,0.00036164,2]
[314839893,1708582280839,-543.41,0.00036164,2]
[314839894,1708582280850,-500.0,0.00036164,2]
[314839895,1708582280860,-500.0,0.00036164,2]
[314839896,1708582280870,-500.0,0.00036164,2]
[314839897,1708582280881,-859.65,0.00036164,2]
[314839898,1708582280892,-500.0,0.00036164,2]
[314839899,1708582280902,-500.0,0.00036164,2]
[314839900,1708582280912,-500.0,0.00036164,2]
[314839901,1708582280922,-867.94,0.00036164,2]
[314839902,1708582280933,-1578.49,0.00036164,2]
[314839903,1708582280943,-500.0,0.00036164,2]
[314839904,1708582280953,-500.0,0.00036164,2]
[314839905,1708582280963,-500.0,0.00036164,2]
[314839906,1708582280974,-2369.7,0.00036164,2]
[314839907,1708582280984,-500.0,0.00036164,2]
[314839908,1708582280994,-500.0,0.00036164,2]
[314839909,1708582281004,-591.7,0.00036164,2]
[314839910,1708582281014,-500.0,0.00036164,2]
[314839911,1708582281024,-500.0,0.00036164,2]
[314839912,1708582281034,-500.0,0.00036164,2]
[314839913,1708582281044,-500.0,0.00036164,2]
[314839914,1708582281055,-500.0,0.00036164,2]
[314839915,1708582281065,-590.37,0.00036164,2]
[314839916,1708582281075,-632.72132652,0.00036164,2]
[314839917,1708582281084,-500.0,0.00036164,2]
[314839918,1708582281094,-500.0,0.00036164,2]
[314839919,1708582281104,-500.0,0.00036164,2]
[314839920,1708582281114,-500.0,0.00036164,2]
[314839921,1708582281125,-500.0,0.00036164,2]
[314839922,1708582281136,-500.0,0.00036164,2]
[314839923,1708582281146,-555.68,0.00036164,2]
[314839924,1708582281157,-500.0,0.00036164,2]
[314839925,1708582281166,-500.0,0.00036164,2]
[314839926,1708582281176,-500.0,0.00036164,2]
[314839927,1708582281186,-500.0,0.00036164,2]
[314839928,1708582281195,-500.0,0.00036164,2]
[314839929,1708582281205,-1199.77,0.00036164,2]
[314839930,1708582281214,-250.94661152,0.00036164,2]
[314839931,1708582281224,-500.0,0.00036164,2]
[314839932,1708582281234,-500.0,0.00036164,2]
[314839933,1708582281244,-500.0,0.00036164,2]
[314839934,1708582281254,-500.0,0.00036164,2]
[314839935,1708582281263,-500.0,0.00036164,2]
[314839936,1708582281273,-527.84,0.00036164,2]
[314839937,1708582281283,-500.0,0.00036164,2]
[314839938,1708582281293,-500.0,0.00036164,2]
[314839939,1708582281303,-509.43198571,0.00036164,2]
[314839940,1708582281312,-728.89,0.00036164,2]
[314839941,1708582281323,-500.0,0.00036164,2]
[314839942,1708582281333,-500.0,0.00036164,2]
[314839943,1708582281342,-500.0,0.00036164,2]
[314839944,1708582281352,-500.0,0.00036164,2]
[314839945,1708582281362,-641.26,0.00036164,2]
[314839946,1708582281372,-1075.46,0.00036164,2]
[314839947,1708582281381,-1570.65,0.00036164,2]
[314839948,1708582281391,-500.0,0.00036164,2]
[314839949,1708582281401,-881.78,0.00036164,2]
[314839950,1708582281411,-751.66,0.00036164,2]
[314839951,1708582281420,-500.0,0.00036164,2]
[314839952,1708582281430,-500.0,0.00036164,2]
[314839953,1708582281440,-500.0,0.00036164,2]
[314839954,1708582281449,-500.0,0.00036164,2]
[314839955,1708582281459,-644.22,0.00036164,2]
[314839956,1708582281468,-500.0,0.00036164,2]
[314839957,1708582281478,-619.07,0.00036164,2]
[314839958,1708582281487,-500.0,0.00036164,2]
[314839959,1708582281497,-500.0,0.00036164,2]
[314839960,1708582281507,-500.0,0.00036164,2]
[314839961,1708582281517,-500.0,0.00036164,2]
[314839962,1708582281527,-500.0,0.00036164,2]
[314839963,1708582281538,-500.0,0.00036164,2]
[314839964,1708582281548,-500.0,0.00036164,2]
[314839965,1708582281558,-1303.82,0.00036164,2]
[314839966,1708582281568,-500.0,0.00036164,2]
[314839967,1708582281578,-500.0,0.00036164,2]
[314839968,1708582281588,-500.0,0.00036164,2]
[314839969,1708582281598,-500.0,0.00036164,2]
[314839970,1708582281608,-500.0,0.00036164,2]
[314839971,1708582281618,-500.0,0.00036164,2]
[314839972,1708582281630,-500.0,0.00036164,2]
[314839973,1708582281640,-612.06,0.00036164,2]
[314839974,1708582281649,-956.61,0.00036164,2]
[314839975,1708582281659,-500.0,0.00036164,2]
[314839976,1708582281669,-701.99,0.00036164,2]
[314839977,1708582281679,-500.0,0.00036164,2]
[314839978,1708582281689,-500.0,0.00036164,2]
[314839979,1708582281699,-1044.69,0.00036164,2]
[314839980,1708582281708,-500.0,0.00036164,2]
[314839981,1708582281718,-500.0,0.00036164,2]
[314839982,1708582281727,-500.0,0.00036164,2]
[314839983,1708582281736,-634.84,0.00036164,2]
[314839984,1708582281746,-500.0,0.00036164,2]
[314839985,1708582281755,-500.0,0.00036164,2]
[314839986,1708582281765,-1074.62,0.00036164,2]
[314839987,1708582281775,-500.0,0.00036164,2]
[314839988,1708582281785,-754.45,0.00036164,2]
[314839989,1708582281794,-500.0,0.00036164,2]
[314839990,1708582281804,-826.06,0.00036164,2]
[314839991,1708582281813,-769.06,0.00036164,2]
[314839992,1708582281823,-644.17,0.00036164,2]
[314839993,1708582281837,-516.64597693,0.00036164,2]
[314839994,1708582281850,-535.86,0.00036164,2]
[314839995,1708582281860,-500.0,0.00036164,2]
[314839996,1708582281870,-500.0,0.00036164,2]
[314839997,1708582281881,-500.0,0.00036164,2]
[314839998,1708582281891,-500.0,0.00036164,2]
[314839999,1708582281901,-914.5,0.00036164,2]
[314840000,1708582281911,-500.0,0.00036164,2]
[314840001,1708582281922,-595.28,0.00036164,2]
[314840002,1708582281932,-1772.15,0.00036164,2]
[314840003,1708582281941,-500.0,0.00036164,2]
[314840004,1708582281950,-500.0,0.00036164,2]
[314840005,1708582281959,-500.0,0.00036164,2]
[314840006,1708582281969,-500.0,0.00036164,2]
[314840007,1708582281978,-651.49,0.00036164,2]
[314840008,1708582281988,-500.0,0.00036164,2]
[314840009,1708582281997,-723.85,0.00036164,2]
[314840010,1708582282007,-500.0,0.00036164,2]
[314840011,1708582282016,-500.0,0.00036164,2]
[314840012,1708582282026,-981.32,0.00036164,2]
[314840013,1708582282036,-500.0,0.00036164,2]
[314840014,1708582282045,-500.0,0.00036164,2]
[314840015,1708582282055,-500.0,0.00036164,2]
[314840016,1708582282064,-1332.27,0.00036164,2]
[314840017,1708582282074,-500.0,0.00036164,2]
[314840018,1708582282084,-500.0,0.00036164,2]
[314840019,1708582282093,-500.0,0.00036164,2]
[314840020,1708582282103,-500.0,0.00036164,2]
[314840021,1708582282112,-500.0,0.00036164,2]
[314840022,1708582282121,-500.0,0.00036164,2]
[314840023,1708582282132,-500.0,0.00036164,2]
[314840024,1708582282142,-500.0,0.00036164,2]
[314840025,1708582282151,-500.0,0.00036164,2]
[314840026,1708582282160,-1439.67,0.00036164,2]
[314840027,1708582282170,-753.46,0.00036164,2]
[314840028,1708582282179,-511.08548479,0.00036164,2]
[314840029,1708582282189,-1431.54,0.00036164,2]
[314840030,1708582282198,-500.0,0.00036164,2]
[314840031,1708582282208,-500.0,0.00036164,2]
[314840032,1708582282218,-609.44,0.00036164,2]
[314840033,1708582282228,-500.0,0.00036164,2]
[314840034,1708582282237,-550.65,0.00036164,2]
[314840035,1708582282247,-500.0,0.00036164,2]
[314840036,1708582282256,-500.0,0.00036164,2]
[314840037,1708582282266,-366.01100263,0.00036164,2]
[314840038,1708582282276,-1075.01,0.00036164,2]
[314840039,1708582282285,-500.0,0.00036164,2]
[314840040,1708582282295,-1309.23,0.00036164,2]
[314840041,1708582282305,-500.0,0.00036164,2]
[314840042,1708582282315,-500.0,0.00036164,2]
[314840043,1708582282324,-998.09,0.00036164,2]
[314840044,1708582282334,-503.30206134,0.00036164,2]
[314840045,1708582282343,-537.75,0.00036164,2]
[314840046,1708582282353,-500.0,0.00036164,2]
[314840047,1708582282363,-894.66,0.00036164,2]
[314840048,1708582282372,-500.0,0.00036164,2]
[314840049,1708582282381,-500.0,0.00036164,2]
[314840050,1708582282391,-1000.0,0.00036164,7]
[314840051,1708582282401,-881.41,0.00036164,2]
[314840052,1708582282410,-509.73939909,0.00036164,2]
[314840053,1708582282420,-500.0,0.00036164,2]
[314840054,1708582282429,-500.0,0.00036164,2]
[314840055,1708582282439,-513.6499843,0.00036164,2]
[314840056,1708582282449,-500.0,0.00036164,2]
[314840057,1708582282458,-500.0,0.00036164,2]
[314840058,1708582282468,-500.0,0.00036164,2]
[314840059,1708582282478,-500.0,0.00036164,2]
[314840060,1708582282488,-2998.98,0.00036164,2]
[314840061,1708582282497,-150.0,0.00036164,2]
[314840062,1708582282507,-500.0,0.00036164,2]
[314840063,1708582282516,-500.0,0.00036164,2]
[314840064,1708582282536,-3317.13,0.00036164,2]
[314840065,1708582282547,-500.0,0.00036164,2]
[314840066,1708582282556,-508.51880533,0.00036164,2]
[314840067,1708582282566,-500.0,0.00036164,2]
[314840068,1708582282575,-500.0,0.00036164,2]
[314840069,1708582282585,-500.0,0.00036164,2]
[314840070,1708582282595,-500.0,0.00036164,2]
[314840071,1708582282604,-500.0,0.00036164,2]
[314840072,1708582282614,-1509.54,0.00036164,2]
[314840073,1708582282624,-500.0,0.00036164,2]
[314840074,1708582282635,-1011.41,0.00036164,2]
[314840075,1708582282644,-891.93,0.00036164,2]
[314840076,1708582282654,-504.14657211,0.00036164,2]
[314840077,1708582282663,-500.0,0.00036164,2]
[314840078,1708582282673,-1189.11,0.00036164,2]
[314840079,1708582282683,-8797.78,0.00036164,2]
[314840080,1708582282693,-500.0,0.00036164,2]
[314840081,1708582282703,-500.0,0.00036164,2]
[314840082,1708582282713,-502.84988466,0.00036164,2]
[314840083,1708582282723,-500.0,0.00036164,2]
[314840084,1708582282732,-544.21633157,0.00036164,2]
[314840085,1708582282742,-500.0,0.00036164,2]
[314840086,1708582282751,-1199.25,0.00036164,2]
[314840087,1708582282761,-500.0,0.00036164,2]
[314840088,1708582282770,-500.0,0.00036164,2]
[314840089,1708582282780,-8455.5,0.00036164,2]
[314840090,1708582282790,-500.0,0.00036164,2]
[314840091,1708582282809,-1311.17,0.00036164,2]
[314840092,1708582282818,-500.0,0.00036164,2]
[314840093,1708582282827,-956.33,0.00036164,2]
[314840094,1708582282837,-301.45704444,0.00036164,2]
[314840095,1708582282848,-500.0,0.00036164,2]
[314840096,1708582282858,-675.58,0.00036164,2]
[314840097,1708582282867,-500.0,0.00036164,2]
[314840098,1708582282879,-500.0,0.00036164,2]
[314840099,1708582282889,-23168.45,0.00036164,2]
[314840100,1708582282899,-500.0,0.00036164,2]
[314840101,1708582282915,-500.0,0.00036164,2]
[314840102,1708582282935,-500.0,0.00036164,2]
[314840103,1708582282952,-9707.65,0.00036164,2]
[314840104,1708582282971,-726.04,0.00036164,2]
[314840105,1708582282988,-500.0,0.00036164,2]
[314840106,1708582283006,-500.0,0.00036164,2]
[314840107,1708582283023,-500.0,0.00036164,2]
[314840108,1708582283036,-500.0,0.00036164,2]
[314840109,1708582283052,-1918.3,0.00036164,2]
[314840110,1708582283067,-500.0,0.00036164,2]
[314840111,1708582283083,-522.33,0.00036164,2]
[314840112,1708582283098,-1502.18,0.00036164,2]
[314840113,1708582283111,-3740.13,0.00036164,2]
[314840114,1708582283129,-500.0,0.00036164,2]
[314840115,1708582283149,-921.81,0.00036164,2]
[314840116,1708582283164,-500.0,0.00036164,2]
[314840117,1708582283180,-500.0,0.00036164,2]
[314840118,1708582283196,-690.93,0.00036164,2]
[314840119,1708582283213,-500.0,0.00036164,2]
[314840120,1708582283230,-538.21,0.00036164,2]
[314840121,1708582283242,-500.0,0.00036164,2]
[314840122,1708582283253,-500.0,0.00036164,2]
[314840123,1708582283268,-549.54847003,0.00036164,2]
[314840124,1708582283286,-500.0,0.00036164,2]
[314840125,1708582283300,-1578.35,0.00036164,2]
[314840126,1708582283311,-1678.0,0.00036164,2]
[314840127,1708582283325,-1568.0,0.00036164,2]
[314840128,1708582283342,-500.0,0.00036164,2]
[314840129,1708582283360,-1143.94,0.00036164,2]
[314840130,1708582283382,-500.0,0.00036164,2]
[314840131,1708582283405,-505.53731286,0.00036164,2]
[314840132,1708582283446,-1782.03,0.00036164,2]
[314840133,1708582283464,-546.02,0.00036164,2]
[314840134,1708582283483,-1269.53,0.00036164,2]
[314840135,1708582283499,-500.0,0.00036164,2]
[314840136,1708582283516,-828.35,0.00036164,2]
[314840137,1708582283531,-500.0,0.00036164,2]
[314840138,1708582283547,-500.0,0.00036164,2]
[314840139,1708582283563,-500.0,0.00036164,2]
[314840140,1708582283578,-993.28,0.00036164,2]
[314840141,1708582283593,-500.0,0.00036164,2]
[314840142,1708582283607,-500.0,0.00036164,2]
[314840143,1708582283627,-1501.47,0.00036164,2]
[314840144,1708582283641,-266.06918727,0.00036164,2]
[314840145,1708582283656,-500.0,0.00036164,2]
[314840146,1708582283671,-500.0,0.00036164,2]
[314840147,1708582283687,-758.7,0.00036164,2]
[314840148,1708582283700,-500.0,0.00036164,2]
[314840149,1708582283715,-500.0,0.00036164,2]
[314840150,1708582283729,-500.0,0.00036164,2]
[314840151,1708582283744,-500.0,0.00036164,2]
[314840152,1708582283757,-500.0,0.00036164,2]
[314840153,1708582283772,-2476.48921278,0.00036164,2]
[314840154,1708582286534,-150.67024242,0.000347,2]
[314840155,1708582286544,-832.13505388,0.000349,2]
[314840156,1708582287089,-150.0,0.00034778,2]
[314840157,1708582287099,-150.0,0.00034857,2]
[314840158,1708582287109,-150.0,0.00034883,2]
[314840159,1708582287119,-6195.84797388,0.000349,2]
[314840160,1708582287128,-338.13743678,0.00035506,3]
[314840161,1708582287139,-2017.08,0.00035616,2]
[314840162,1708582287149,-500.0,0.00035616,2]
[314840163,1708582287159,-1172.96,0.00035616,2]
[314840164,1708582287169,-500.0,0.00035797,2]
[314840165,1708582287178,-500.0,0.00035797,2]
[314840166,1708582287188,-500.0,0.00035797,2]
[314840167,1708582287197,-500.0,0.00035797,2]
[314840168,1708582287206,-310.50625661,0.00035797,2]
[314840169,1708582287218,-189.49374339,0.00035797,2]
[314840170,1708582287228,-591.58,0.0003589,2]
[314840171,1708582287237,-2017.08,0.0003589,2]
[314840172,1708582287246,-629.63122497,0.0003589,2]
[314840173,1708582287255,-1172.96,0.0003589,2]
[314840174,1708582287265,-1250.43078722,0.00036164,2]
[314840175,1708582287274,-257.86041109,0.00036164,2]
[314840176,1708582287493,-242.13958891,0.00036164,2]
[314840177,1708582287502,-500.0,0.00036164,2]
[314840178,1708582287512,-500.0,0.00036164,2]
[314840179,1708582287521,-86.09559705,0.00036164,2]
[314840180,1708582288545,-503.74704771,0.000347,2]
[314840181,1708582288555,-7027.98302763,0.000349,2]
[314840182,1708582288565,-269.23600325,0.00035615,4]
[314840183,1708582288734,-18898.55083062,0.00035615,4]
[314840184,1708582291622,494.76948559,0.00015725,2]
[314840185,1708582509584,-331.9904,0.00027185,2]
[314840186,1708582509606,-1039.45406709,0.00028817,2]
[314840187,1708582509627,-204.39955188,0.00028817,2]
[314840188,1708582509648,-500.0,0.00028818,2]
[314840189,1708582509671,-208.0,0.00028864,2]
[314840190,1708582509692,-1425.05,0.00028875,2]
[314840191,1708582509714,-1455.05,0.00029281,2]
[314840192,1708582509736,-1474.05598103,0.00029969,2]
[314840193,1708582609305,-250.0,0.00028818,2]
[314840194,1708582609328,-0.32401897,0.00029969,2]
[314840195,1708582621025,249.67598103,0.00028818,2]
[314840196,1708582634312,-1602.74401897,0.00028818,2]
[314840197,1708582708766,-1443.95,0.00028818,2]
[314840198,1708582708789,-1457.45,0.00028863,2]
[314840199,1708582708812,-1473.3,0.00028908,2]
[314840200,1708582708834,-125.3,0.00029683,2]
[314840201,1708582762862,-1039.45406709,0.00028817,2]
[314840202,1708582762886,-3830.54593291,0.00028818,2]
[314840203,1708582918613,-204.39955188,0.00028673,2]
[314840204,1708582918651,-200.65854675,0.00028674,2]
[314840205,1708582918684,-2324.6735,0.00028718,2]
[314840206,1708582918717,-154.5790612,0.00028718,2]
[314840207,1708582918749,-150.0,0.00028817,2]
[314840208,1708582918782,-1419.48,0.00028818,2]
[314840209,1708582918816,-1455.44,0.00028818,2]
[314840210,1708582918848,-9361.15032327,0.00028818,2]
[314840211,1708582918884,-1428.35,0.00028818,2]
[314840212,1708582918917,-500.0,0.00028818,2]
[314840213,1708582918939,-204.39955188,0.00028818,2]
[314840214,1708582918961,-200.65854675,0.00028818,2]
[314840215,1708582918982,-2324.6735,0.00028818,2]
[314840216,1708582919002,-154.5790612,0.00028818,2]
[314840217,1708582919027,-150.0,0.00028818,2]
[314840218,1708582919118,-1419.48,0.00028818,2]
[314840219,1708582919189,-1455.44,0.00028818,2]
[314840220,1708582919207,-9361.15032327,0.00028818,2]
[314840221,1708582919227,-1428.35,0.00028818,2]
[314840222,1708582919240,-500.0,0.00028818,2]
[314840223,1708582919256,-6701.2690169,0.00028818,2]
[314840224,1708582919266,-162.77,0.00028818,2]
[314840225,1708582919276,-1463.96,0.00028841,2]
[314840226,1708582919285,-513.5390169,0.00028841,2]
[314840227,1708582937805,5145.895,0.00031,30]
[314840228,1708582969393,-2461.84967673,0.00028818,2]
[314840229,1708582969408,-6899.30064654,0.00028818,2]
[314840230,1708582969813,-930.4009831,0.00028841,2]
[314840246,1708583432394,-750.0,0.00025,3]
[314840247,1708583432407,-1039.45406709,0.00026896,2]
[314840248,1708583432417,-204.39955188,0.00026897,2]
[314840249,1708583432426,-730.45,0.000269,2]
[314840250,1708583432436,-300.0,0.00028817,2]
[314840251,1708583432446,-150.0,0.00028817,2]
[314840252,1708583432456,-200.0,0.00028818,2]
[314840253,1708583432466,-200.0,0.00028818,2]
[314840254,1708583432476,-3672.93,0.00028818,2]
[314840255,1708583432485,-176.21,0.00028818,2]
[314840256,1708583432495,-3565.61,0.00028818,2]
[314840257,1708583432505,-250.0,0.00028818,2]
[314840258,1708583432516,-2705.0,0.00028818,2]
[314840259,1708583432525,-2000.0,0.00028818,2]
[314840260,1708583432535,-3078.29666064,0.00028818,2]
[314840261,1708583432548,-624.91500593,0.00028818,2]
[314840262,1708583432605,-7492.94838192,0.00028818,2]
[314840263,1708583432630,-1360.1866726,0.00028818,2]
[314840271,1708583432800,-4317.82406517,0.00028818,2]
[314840272,1708583432815,-5695.5,0.00028818,2]
[314840273,1708583432841,-1330.32921374,0.00028818,2]
[314840274,1708583432851,-154.57906115,0.00029143,2]
[314840275,1708583432860,-730.45,0.00029164,2]
[314840276,1708583432870,-154.57906115,0.00029568,2]
[314840277,1708583432879,-41.53,0.00029683,2]
[314840278,1708583432890,-166.21,0.00029683,2]
[314840279,1708583432901,-154.57906115,0.00029993,2]
[314840280,1708583433337,-350.0,0.0003,10]
[314840281,1708583433347,-154.57906115,0.00030418,2]
[314840282,1708583433356,-154.57906115,0.00030842,2]
[314840283,1708583433366,-1419.4,0.00031188,2]
[314840284,1708583433375,-154.57906115,0.00031267,2]
[314840285,1708583433384,-730.45,0.00031428,2]
[314840286,1708583433394,-184.6,0.00031642,2]
[314840287,1708583433406,-154.57906115,0.00031692,2]
[314840288,1708583433415,-210.0,0.00031699,3]